bitfinex/quotes_ETHUSD_20260306
["timestamp","ask_amount","ask_price","bid_price","bid_amount"]
[1772782168629,1.19978883,2083.7,2083.5,1.64136478]
[1772782169533,2.934195,2083.7,2083.5,0.001]
[1772782170864,1.20178223,2083.8,2083.5,1.70498801]
[1772782172846,0.002,2083.8,2083.5,1.70498801]
[1772782173352,1.60229414,2083.8,2083.5,0.001]
[1772782174967,1.60029414,2083.6,2083.5,0.001]
[1772782177058,2.80014055,2083.6,2083.5,0.001]
[1772782177268,1.19984641,2083.6,2083.5,0.001]
[1772782177569,1.20176271,2083.8,2083.5,1.70498801]
[1772782179171,0.002,2083.8,2083.5,1.70498801]
[1772782183356,1.60229414,2084.0,2083.7,1.70398801]
[1772782183357,0.002,2084.0,2083.7,1.70398801]
[1772782183554,0.002,2084.0,2083.8,1.70398801]
[1772782185961,0.002,2084.0,2083.9,1.70398801]
[1772782186275,11.72942363,2084.7,2083.8,1.19973118]
[1772782186276,1.39942363,2084.7,2084.0,1.70398801]
[1772782186572,0.004,2084.4,2084.0,1.70398801]
[1772782188380,0.002,2084.3,2084.0,1.70398801]
[1772782188573,0.002,2084.3,2083.7,1.70498801]
[1772782188574,1.60229414,2084.3,2083.7,1.70498801]
[1772782188774,0.004,2084.2,2083.7,1.70498801]
[1772782189381,1.60429414,2084.2,2083.7,1.70498801]
[1772782189777,1.60429414,2084.2,2083.8,1.70398801]
[1772782190279,0.004,2084.1,2083.8,1.70398801]
[1772782190460,1.20355856,2084.1,2083.8,1.70398801]
[1772782190658,0.004,2084.1,2083.8,1.70398801]
[1772782192059,2.79979535,2084.2,2083.8,1.70398801]
[1772782192271,0.004,2084.1,2083.8,1.70398801]
[1772782193199,1.60429414,2084.1,2083.7,0.001]
[1772782193893,1.60429414,2084.1,2083.7,1.70498801]
[1772782194475,1.19961612,2084.0,2083.7,1.70498801]
[1772782197877,1.20356873,2084.1,2083.7,1.70498801]
[1772782198867,1.20356873,2084.1,2083.7,2.90477128]
[1772782199161,1.20356873,2084.1,2083.8,1.70398801]
[1772782200402,0.004,2084.1,2083.9,1.68719923]
[1772782200603,1.20145189,2084.3,2083.9,1.68819923]
[1772782201096,0.002,2084.2,2083.9,1.68819923]
[1772782203803,0.002,2084.2,2084.0,1.68719923]
[1772782205711,4.99713484,2084.7,2084.0,1.68719923]
[1772782205712,1.19932868,2084.5,2084.1,1.68719923]
[1772782205873,2.81672868,2084.5,2084.1,1.68719923]
[1772782207102,1.6174,2084.4,2084.0,1.68719923]
[1772782207413,1.6174,2084.4,2083.9,0.001]
[1772782207604,1.6174,2084.4,2083.9,1.68819923]
[1772782209196,2.81684345,2084.3,2083.9,1.68819923]
[1772782210203,2.81684345,2084.3,2084.0,50.0]
[1772782210903,1.6174,2084.2,2084.0,50.0]
[1772782211199,1.19952236,2084.2,2084.0,14.44470974]
[1772782211708,2.81692236,2084.2,2084.0,14.44470974]
[1772782211899,1.6174,2084.1,2084.0,14.44470974]
[1772782214305,2.81695856,2084.1,2084.0,14.44470974]
[1772782215479,2.81695856,2084.1,2084.0,13.44382806]
[1772782216202,1.6174,2084.0,2083.5,1.88193689]
[1772782218180,2.81703427,2084.0,2083.5,1.88193689]
[1772782218604,1.6174,2084.0,2083.5,1.88193689]
[1772782220208,2.81701687,2084.0,2083.5,1.88193689]
[1772782220412,1.6174,2084.0,2083.5,1.88193689]
[1772782220593,2.81701722,2084.0,2083.5,1.88193689]
[1772782220795,2.81696672,2084.1,2083.5,1.88193689]
[1772782221309,1.6174,2084.0,2083.5,1.88193689]
[1772782221904,1.6174,2084.0,2083.5,0.68203739]
[1772782222216,1.6174,2083.8,2083.5,0.68203739]
[1772782223688,1.6174,2083.8,2083.4,0.001]
[1772782224189,2.81718883,2083.7,2083.4,0.001]
[1772782224388,1.6174,2083.6,2083.4,0.001]
[1772782224799,1.6174,2083.6,2083.2,1.68719923]
[1772782225094,1.6174,2083.7,2083.2,1.68719923]
[1772782226823,1.6174,2083.7,2082.9,1.68819923]
[1772782226824,1.6174,2083.6,2082.9,1.68819923]
[1772782226987,1.6174,2083.6,2083.0,1.68719923]
[1772782227302,1.6174,2083.6,2082.9,0.001]
[1772782228388,1.6174,2083.6,2083.4,0.001]
[1772782228621,1.6174,2083.6,2082.9,0.001]
[1772782228816,1.6174,2083.4,2083.1,0.001]
[1772782231403,2.30557072,2083.2,2083.1,0.001]
[1772782231921,2.30557072,2083.2,2082.9,0.001]
[1772782233818,2.30557072,2083.4,2082.9,2.33425205]
[1772782234400,2.30557072,2083.2,2082.9,0.001]
[1772782235898,2.30557072,2083.1,2082.9,0.001]
[1772782238112,3.5057339,2083.1,2082.9,0.001]
[1772782238729,2.30557072,2083.0,2082.9,0.001]
[1772782240236,3.50576275,2083.0,2082.9,0.001]
[1772782240729,1.20019203,2083.0,2082.6,0.001]
[1772782240913,2.30557072,2082.9,2082.6,2.33425205]
[1772782242243,0.002,2083.2,2082.9,2.33325205]
[1772782242529,0.002,2083.5,2083.0,2.33325205]
[1772782242736,1.20173907,2083.8,2082.9,2.33325205]
[1772782243824,2.30557072,2083.7,2082.9,2.33325205]
[1772782244335,3.50536847,2083.7,2083.1,2.33325205]
[1772782244503,3.50536196,2083.7,2083.1,2.33325205]
[1772782244903,3.5053817,2083.7,2083.1,2.33325205]
[1772782245600,1.19981098,2083.7,2083.1,2.33325205]
[1772782245801,4.8009309,2083.8,2083.1,2.33325205]
[1772782245802,0.002,2083.8,2083.1,2.33325205]
[1772782246024,2.30557072,2083.7,2083.1,2.33325205]
[1772782246432,3.50541713,2083.6,2083.1,2.33325205]
[1772782247625,3.50541713,2083.6,2082.8,2.33325205]
[1772782247626,2.30557072,2083.5,2082.8,2.33325205]
[1772782248625,1.1999616,2083.4,2082.9,2.33325205]
[1772782248823,2.30557072,2083.5,2082.9,2.33325205]
[1772782249039,3.50548168,2083.5,2082.9,2.33325205]
[1772782249534,3.50547856,2083.5,2082.9,2.33325205]
[1772782250631,2.30557072,2083.4,2082.9,2.33325205]
[1772782250839,2.30557072,2083.4,2082.8,2.33325205]
[1772782252314,2.30557072,2083.7,2082.8,2.33325205]
[1772782252513,1.19984641,2083.6,2082.9,1.20024965]
[1772782252838,3.50541713,2083.6,2083.0,2.33325205]
[1772782253138,2.30557072,2083.5,2083.0,2.33325205]
[1772782253541,2.30557072,2083.5,2083.0,2.33425205]
[1772782253707,0.002,2083.4,2083.0,2.33425205]
[1772782254636,2.30757072,2083.4,2083.0,2.33425205]
[1772782255914,2.30757072,2083.4,2083.0,0.001]
[1772782256938,2.30557072,2083.2,2083.0,0.001]
[1772782259126,1.20013441,2083.1,2083.0,0.001]
[1772782259440,2.30557072,2083.0,2082.8,0.001]
[1772782259621,1.20013441,2083.1,2082.8,0.001]
[1772782260027,3.57468029,2083.1,2082.8,0.001]
[1772782260712,2.37454588,2083.0,2082.8,0.001]
[1772782261137,3.57478698,2083.0,2082.8,0.001]
[1772782261860,2.37454588,2083.2,2082.8,0.001]
[1772782262162,2.37454588,2083.2,2082.8,2.25704482]
[1772782262163,1.20011405,2083.2,2082.8,2.25704482]
[1772782262519,3.57460871,2083.3,2082.8,2.25704482]
[1772782263257,3.57460871,2083.3,2082.9,1.20024965]
[1772782263461,3.57460871,2083.3,2082.9,2.25604482]
[1772782263817,1.20006283,2083.3,2082.9,2.25604482]
[1772782264017,0.002,2083.4,2082.9,2.25604482]
[1772782265223,10.332,2083.8,2083.0,1.20019203]
[1772782265427,1.20173513,2083.8,2083.1,2.25604482]
[1772782265630,0.73990814,2083.7,2083.1,2.25604482]
[1772782267148,0.73990814,2083.7,2082.9,1.20021709]
[1772782267149,0.73990814,2083.7,2082.9,3.4562879]
[1772782267622,0.80204007,2083.5,2083.0,0.001]
[1772782267821,0.80204007,2083.5,2083.0,2.25704482]
[1772782267822,0.80404007,2083.5,2083.0,2.25704482]
[1772782268941,0.80404007,2083.5,2083.0,0.001]
[1772782269522,0.002,2083.5,2083.0,1.20114657]
[1772782269745,0.002,2083.5,2083.1,2.25604482]
[1772782271445,0.78829917,2083.5,2083.1,2.25604482]
[1772782271626,1.1999616,2083.4,2083.1,2.25604482]
[1772782271829,0.78829917,2083.5,2083.1,3.45616434]
[1772782271830,1.98820503,2083.5,2083.1,3.45616434]
[1772782272021,1.98820503,2083.5,2083.1,2.25604482]
[1772782272523,0.002,2083.7,2083.2,2.25604482]
[1772782273523,0.002,2084.0,2083.3,2.25604482]
[1772782273845,0.002,2084.0,2083.5,2.25604482]
[1772782274828,0.002,2084.2,2083.5,2.25604482]
[1772782275730,0.002,2084.2,2083.7,2.25604482]
[1772782278754,0.002,2084.2,2083.9,2.25604482]
[1772782280550,0.002,2084.2,2083.8,2.25604482]
[1772782280729,0.002,2084.2,2084.0,2.25604482]
[1772782282750,0.002,2084.2,2084.1,1.19955856]
[1772782282954,0.002,2084.2,2084.1,3.45560338]
[1772782288757,0.002,2084.5,2084.2,2.25604482]
[1772782289158,6.36,2085.9,2084.2,2.39172761]
[1772782289159,1.19908071,2085.0,2084.2,2.39172761]
[1772782289374,0.29904279,2085.4,2084.5,2.39172761]
[1772782289551,0.29904279,2085.4,2084.5,2.31011831]
[1772782289731,1.64928862,2085.4,2084.5,2.31011831]
[1772782290060,0.18521655,2085.3,2084.5,2.31011831]
[1772782290363,0.18696932,2085.1,2084.5,2.31011831]
[1772782291767,0.18696932,2085.1,2084.0,2.3564481]
[1772782291982,0.18696932,2085.1,2083.4,2.3564481]
[1772782292254,0.18190612,2085.0,2083.9,0.001]
[1772782292435,0.18190612,2084.8,2083.9,0.001]
[1772782292760,0.002,2084.3,2083.9,2.3574481]
[1772782294643,0.002,2084.3,2084.0,2.3564481]
[1772782296137,0.002,2084.3,2083.9,0.001]
[1772782296449,0.002,2084.3,2084.0,2.3564481]
[1772782297150,0.16684802,2084.3,2083.9,0.001]
[1772782298355,0.16684802,2084.3,2083.6,0.001]
[1772782298753,0.15702231,2084.1,2083.6,0.001]
[1772782300862,1.34978407,2084.0,2083.6,0.001]
[1772782301245,0.15016795,2083.9,2083.6,0.001]
[1772782302538,1.19961612,2084.0,2083.6,0.001]
[1772782302939,4.94519207,2084.1,2083.6,0.001]
[1772782302940,1.34632178,2084.1,2083.6,0.001]
[1772782303737,0.14327863,2084.0,2083.6,0.001]
[1772782304364,0.14327863,2084.0,2083.4,0.001]
[1772782305068,0.13540392,2083.8,2083.4,0.001]
[1772782306170,1.19967368,2083.9,2083.4,0.001]
[1772782306539,0.13195454,2083.8,2083.5,0.001]
[1772782306945,1.19978883,2083.7,2083.5,0.001]
[1772782307339,0.12851896,2083.6,2083.5,0.001]
[1772782308680,1.19978883,2083.7,2083.5,0.001]
[1772782309041,0.12160288,2083.7,2083.5,0.001]
[1772782309254,0.12160288,2083.7,2083.4,0.001]
[1772782309453,0.12160288,2083.7,2083.0,0.001]
[1772782310349,0.12160288,2083.7,2082.8,0.001]
[1772782310841,0.11279787,2083.5,2082.6,0.001]
[1772782311048,0.11279787,2083.3,2082.6,0.001]
[1772782311586,0.11279787,2083.3,2082.6,2.3574481]
[1772782313276,1.30596881,2083.2,2082.6,2.3574481]
[1772782313678,0.10589201,2083.1,2082.6,0.001]
[1772782315273,1.20019203,2083.0,2082.6,0.001]
[1772782315468,1.29914525,2083.0,2082.6,0.001]
[1772782315785,1.20019203,2083.0,2082.6,0.001]
[1772782315988,0.09547466,2082.9,2082.6,0.001]
[1772782316488,1.20019203,2083.0,2082.6,0.001]
[1772782316691,1.20019203,2083.0,2082.6,2.3574481]
[1772782316997,1.1999616,2083.4,2082.6,2.3574481]
[1772782317395,0.09199513,2083.7,2082.8,2.3564481]
[1772782318957,0.09199513,2083.7,2082.6,3.55786888]
[1772782319558,1.19984641,2083.6,2082.7,2.3564481]
[1772782319787,0.08503438,2083.5,2082.7,2.3564481]
[1772782320775,0.08503438,2083.5,2082.6,0.001]
[1772782320975,0.08703438,2083.5,2082.6,0.001]
[1772782321388,0.07830987,2083.4,2082.8,0.001]
[1772782321591,0.07830987,2083.2,2082.8,0.001]
[1772782322379,0.07484227,2083.0,2082.0,2.33036666]
[1772782322697,0.07484227,2083.0,2082.1,2.33036666]
[1772782323065,0.07484227,2083.0,2081.9,2.33036666]
[1772782323260,0.07484227,2083.0,2081.0,4.80617768]
[1772782323261,0.07484227,2083.0,2081.2,2.33036666]
[1772782323463,2.01935509,2083.1,2081.2,2.33036666]
[1772782323464,2.24312224,2082.7,2081.2,2.33036666]
[1772782323681,2.24312224,2082.7,2081.3,1.20117234]
[1772782323682,2.24312224,2082.5,2081.3,1.20117234]
[1772782323887,2.24312224,2082.5,2081.4,2.33036666]
[1772782324874,2.24312224,2082.4,2081.1,3.53162921]
[1772782325196,2.24312224,2082.4,2081.2,2.33036666]
[1772782326170,2.24312224,2082.2,2081.2,3.53155077]
[1772782326587,2.24312224,2082.2,2081.2,3.53158349]
[1772782326983,1.20059549,2082.3,2081.3,2.33036666]
[1772782327771,3.44371773,2082.3,2081.3,2.33036666]
[1772782328704,1.20059988,2082.3,2081.4,1.20111463]
[1772782329002,1.20046202,2082.6,2081.5,2.33036666]
[1772782329871,3.44358426,2082.6,2081.5,2.33036666]
[1772782330499,8.39099259,2083.4,2081.5,2.33036666]
[1772782330500,1.20024965,2082.9,2081.5,2.33036666]
[1772782330895,1.20024965,2082.9,2081.7,2.33036666]
[1772782331905,3.44337189,2082.9,2081.7,2.33036666]
[1772782332077,2.24312224,2082.8,2081.7,2.33036666]
[1772782332878,2.24312224,2082.8,2081.9,2.33036666]
[1772782332879,1.20036491,2082.7,2081.9,2.33036666]
[1772782333775,3.44547099,2082.8,2081.9,2.33036666]
[1772782334180,0.002,2082.8,2081.9,2.33036666]
[1772782334386,1.20231102,2082.8,2081.9,2.33036666]
[1772782335008,0.002,2082.8,2082.0,3.53113515]
[1772782335504,2.24512224,2082.8,2082.0,3.53113515]
[1772782335802,0.002,2082.8,2082.2,2.33036666]
[1772782337189,2.24512224,2082.8,2082.1,1.20069024]
[1772782337581,2.24512224,2082.8,2082.0,3.53109545]
[1772782339175,1.20036491,2082.7,2082.0,3.53109545]
[1772782339479,2.24512224,2082.8,2082.0,3.53109545]
[1772782339678,3.44546503,2082.8,2082.0,3.53109545]
[1772782341493,2.24312224,2082.7,2081.9,1.2007976]
[1772782341895,2.24312224,2082.7,2081.9,3.53116426]
[1772782342817,2.24312224,2082.7,2081.9,1.2007976]
[1772782343801,2.24312224,2082.7,2081.8,4.80350505]
[1772782343802,2.24312224,2082.5,2081.8,1.20084113]
[1772782344914,2.24312224,2082.5,2081.9,2.33036666]
[1772782345081,3.4435316,2082.7,2081.9,2.33036666]
[1772782346215,2.24312224,2082.6,2081.8,4.80341412]
[1772782346918,2.24312224,2082.6,2081.8,1.20088385]
[1772782347216,2.24312224,2082.6,2081.7,4.80468108]
[1772782347217,2.24312224,2082.6,2082.1,0.001]
[1772782347422,2.24512224,2082.6,2082.1,0.001]
[1772782348012,2.24312224,2082.5,2082.1,0.001]
[1772782350811,3.53829751,2082.4,2082.1,0.001]
[1772782351323,2.33775967,2082.4,2082.1,0.001]
[1772782353192,3.53833968,2082.4,2082.1,0.001]
[1772782354526,3.5402243,2082.6,2082.1,0.001]
[1772782354723,3.54018447,2082.6,2082.1,2.26796733]
[1772782355101,0.002,2082.6,2082.2,3.46762048]
[1772782355429,0.002,2082.6,2082.3,2.26696733]
[1772782355598,0.002,2082.8,2082.3,2.26696733]
[1772782355791,0.002,2083.0,2082.4,2.26696733]
[1772782357234,0.002,2083.0,2082.6,2.26696733]
[1772782357415,0.004,2083.0,2082.3,2.26696733]
[1772782358334,0.002,2083.0,2082.3,2.26696733]
[1772782358712,0.002,2082.9,2082.3,2.26696733]
[1772782359430,0.002,2082.9,2082.5,2.26696733]
[1772782361118,0.002,2082.9,2082.4,1.20053784]
[1772782361338,0.002,2082.7,2082.4,3.46750517]
[1772782364815,0.002,2082.9,2082.5,2.26696733]
[1772782365038,0.002,2082.7,2082.5,2.26696733]
[1772782366224,0.002,2082.9,2082.5,2.26696733]
[1772782366431,0.002,2082.8,2082.5,2.26696733]
[1772782367025,0.002,2082.8,2082.6,1.20042254]
[1772782368449,0.002,2082.8,2082.5,6.26928879]
[1772782368648,0.002,2082.7,2082.5,6.26928879]
[1772782368843,0.002,2082.7,2082.5,1.20043739]
[1772782369051,0.002,2082.7,2082.5,3.46740472]
[1772782369716,0.002,2082.6,2082.4,1.20052797]
[1772782369921,3.5400119,2082.9,2082.4,1.20052797]
[1772782369922,2.33775967,2082.8,2082.4,1.20052797]
[1772782370153,2.33975967,2082.8,2082.4,1.20052797]
[1772782371133,3.54009354,2082.8,2082.4,1.20052797]
[1772782371515,3.54009354,2082.8,2082.1,2.43563048]
[1772782371516,2.33775967,2082.7,2082.1,0.001]
[1772782371742,2.33775967,2082.7,2082.1,1.20170689]
[1772782372626,2.33775967,2082.7,2082.1,3.46867422]
[1772782373036,2.33775967,2082.7,2082.2,2.26696733]
[1772782373239,3.53816165,2082.7,2082.2,3.46758334]
[1772782373439,2.33775967,2082.6,2082.2,3.46758334]
[1772782375538,3.53819154,2082.6,2082.1,1.20166087]
[1772782375744,0.002,2082.5,2082.1,1.20166087]
[1772782375945,2.33975967,2082.5,2082.1,1.20166087]
[1772782376143,2.33975967,2082.5,2082.4,0.001]
[1772782377837,3.54006861,2082.8,2082.4,0.001]
[1772782378627,2.33775967,2082.7,2082.4,0.001]
[1772782380263,3.53812759,2082.7,2082.4,0.001]
[1772782380557,2.2899658,2082.6,2082.4,0.001]
[1772782381156,2.2899658,2082.6,2082.1,0.001]
[1772782382048,2.2899658,2082.4,2082.1,0.001]
[1772782382757,2.2899658,2082.4,2081.9,0.001]
[1772782382962,2.2899658,2082.4,2081.7,0.001]
[1772782383143,2.2899658,2082.4,2081.8,0.001]
[1772782384966,2.2899658,2082.2,2081.8,0.001]
[1772782385134,2.2899658,2082.2,2081.9,0.001]
[1772782385339,2.2899658,2082.2,2081.7,2.30969035]
[1772782385734,2.2899658,2082.4,2081.8,2.30969035]
[1772782386163,2.2899658,2082.4,2081.9,0.001]
[1772782386462,2.2899658,2082.4,2081.9,2.30969035]
[1772782388462,2.2899658,2082.4,2082.0,1.20076849]
[1772782390104,2.2899658,2082.4,2082.1,0.001]
[1772782390568,0.002,2082.2,2082.1,0.001]
[1772782391270,0.002,2082.2,2082.1,0.002]
[1772782391581,2.2919658,2082.2,2081.9,0.001]
[1772782392563,0.002,2082.2,2081.9,3.51049178]
[1772782392862,0.002,2082.4,2082.0,2.30869035]
[1772782393162,0.002,2082.7,2082.0,2.30869035]
[1772782393539,0.002,2082.7,2081.9,0.001]
[1772782393540,0.002,2082.7,2082.2,2.30869035]
[1772782394971,0.002,2082.7,2082.3,1.20059549]
[1772782395174,1e-08,2082.9,2082.5,2.30869035]
[1772782397071,1e-08,2082.9,2082.6,1.20042254]
[1772782397772,1e-08,2082.9,2082.7,2.30869035]
[1772782398369,0.00200001,2082.9,2082.7,2.30869035]
[1772782398667,0.002,2083.0,2082.7,2.30869035]
[1772782398970,0.002,2083.3,2082.7,2.30869035]
[1772782399171,0.002,2083.3,2082.9,2.30869035]
[1772782400079,0.002,2083.3,2082.8,1.20030727]
[1772782400644,0.002,2083.3,2082.8,3.50899762]
[1772782401450,2.2919658,2083.3,2082.7,1.20033994]
[1772782403687,2.2899658,2083.1,2082.5,1.20048019]
[1772782403982,2.2919658,2083.1,2082.5,1.20048019]
[1772782406478,2.2919658,2083.1,2082.5,3.50917054]
[1772782406680,3.49211935,2083.1,2082.5,3.50917054]
[1772782406861,2.2919658,2083.1,2082.5,3.50917054]
[1772782408099,2.2919658,2083.1,2082.6,2.30869035]
[1772782410801,2.2919658,2083.1,2082.7,1.20036491]
[1772782411168,0.002,2083.1,2082.8,2.29610655]
[1772782411609,0.002,2083.1,2082.7,1.20036491]
[1772782411804,2.26729583,2083.1,2082.7,1.20036491]
[1772782412970,2.26729583,2083.1,2082.7,3.49647146]
[1772782413267,0.002,2083.5,2082.7,3.49647146]
[1772782413268,0.002,2083.5,2082.7,1.20036491]
[1772782413497,3.467212,2083.5,2082.9,2.29610655]
[1772782413697,2.26529583,2083.4,2082.9,2.29610655]
[1772782414913,2.26529583,2083.4,2083.0,1.20019203]
[1772782416291,0.002,2083.2,2083.0,1.20019203]
[1772782416693,0.002,2083.2,2082.9,3.49732423]
[1772782420008,0.002,2083.2,2082.9,2.29710655]
[1772782420526,0.002,2083.2,2082.9,3.49732549]
[1772782421616,2.26729583,2083.2,2082.9,0.001]
[1772782422180,2.26729583,2083.2,2082.9,1.20124891]
[1772782424317,2.26729583,2083.2,2082.9,0.001]
[1772782428422,0.002,2083.1,2082.9,0.001]
[1772782430192,0.002,2083.1,2082.9,2.29710655]
[1772782431508,2.26729583,2083.1,2082.9,0.001]
[1772782431722,2.26729583,2083.1,2082.6,3.49748214]
[1772782432630,0.002,2083.1,2082.7,2.29610655]
[1772782434303,0.002,2083.1,2082.9,2.29610655]
[1772782434506,0.002,2083.2,2082.9,2.29610655]
[1772782436506,0.002,2083.2,2083.0,1.20019203]
[1772782436703,0.002,2083.2,2082.9,3.49632746]
[1772782439133,0.00200002,2083.5,2083.3,2.29610655]
[1772782439320,0.00200002,2083.5,2083.0,2.29610655]
[1772782439510,2.26729585,2083.5,2083.0,2.29610655]
[1772782440537,0.00200002,2083.5,2083.1,0.001]
[1772782440723,0.002,2083.6,2083.2,2.07759965]
[1772782440937,0.002,2083.6,2083.4,2.07759965]
[1772782441111,0.002,2083.7,2083.4,2.07759965]
[1772782442934,0.002,2083.7,2083.5,1.199904]
[1772782443103,0.002,2083.7,2083.5,3.27750365]
[1772782445144,0.002,2084.0,2083.6,2.07759965]
[1772782446140,2.20627068,2084.5,2083.3,2.07759965]
[1772782446348,2.29976173,2084.9,2083.5,2.07759965]
[1772782446349,2.20627068,2084.8,2083.5,2.07759965]
[1772782447351,2.20627068,2084.6,2083.7,2.07759965]
[1772782449338,2.20627068,2084.5,2083.9,2.07759965]
[1772782450351,2.20627068,2084.5,2083.7,1.1997834]
[1772782450651,2.20627068,2084.5,2083.4,1.19991608]
[1772782451340,2.20627068,2084.3,2083.3,3.27760113]
[1772782451653,2.20627068,2084.3,2083.2,1.20003346]
[1772782451953,2.20627068,2084.3,2083.1,3.27869016]
[1772782452150,2.20627068,2084.3,2083.1,0.001]
[1772782452349,2.20627068,2084.3,2083.2,2.07759965]
[1772782452934,2.20627068,2084.3,2083.6,0.001]
[1772782453327,2.20627068,2084.1,2083.6,0.001]
[1772782453531,2.20627068,2084.1,2083.4,0.001]
[1772782454842,2.20627068,2084.1,2083.4,2.07859965]
[1772782455442,2.20627068,2084.1,2083.5,1.199904]
[1772782455753,2.20627068,2084.1,2083.6,2.07759965]
[1772782457468,3.40583264,2084.1,2083.7,1.19978883]
[1772782457766,2.20627068,2084.1,2083.6,3.27741243]
[1772782458862,2.20827068,2084.3,2083.7,2.07759965]
[1772782459438,3.40772866,2084.3,2083.7,2.07759965]
[1772782459765,2.20627068,2084.2,2083.8,1.19973126]
[1772782460768,2.20627068,2084.2,2083.8,3.27733091]
[1772782460969,0.002,2084.3,2083.9,2.07759965]
[1772782461968,0.002,2084.3,2084.0,3.27721577]
[1772782462144,0.002,2084.3,2084.0,1.19961612]
[1772782462332,0.002,2084.3,2083.9,4.79846449]
[1772782462333,0.002,2084.3,2083.9,2.07759965]
[1772782462540,2.20827068,2084.3,2083.9,2.07759965]
[1772782463331,2.20827068,2084.3,2083.5,4.79947193]
[1772782463544,2.20827068,2084.3,2083.6,2.07759965]
[1772782464083,2.20827068,2084.3,2083.5,1.199904]
[1772782464084,2.20627068,2084.1,2083.4,3.27855899]
[1772782464249,2.20627068,2084.1,2083.4,1.20095661]
[1772782465279,2.20627068,2084.1,2083.4,0.001]
[1772782465654,2.20627068,2084.1,2083.8,0.001]
[1772782465850,2.20627068,2084.1,2083.4,0.001]
[1772782466057,2.20627068,2083.9,2083.4,0.001]
[1772782466256,2.20627068,2083.9,2083.5,0.001]
[1772782467990,2.20627068,2083.7,2083.5,0.001]
[1772782468885,2.20627068,2083.7,2083.3,0.001]
[1772782469180,2.20627068,2083.7,2083.1,0.001]
[1772782469593,2.29976173,2083.7,2082.9,0.001]
[1772782469802,2.20627068,2083.5,2082.9,0.001]
[1772782470018,2.0842213,2083.2,2082.6,0.001]
[1772782470289,2.0842213,2083.2,2082.4,0.001]
[1772782470688,2.03894796,2083.1,2082.1,0.001]
[1772782470871,2.03894796,2083.0,2082.1,0.001]
[1772782472167,1.20024965,2082.9,2082.1,0.001]
[1772782472369,2.03894796,2082.8,2082.1,0.001]
[1772782472687,2.03894796,2082.8,2082.1,2.15880867]
[1772782474299,2.03894796,2082.6,2082.1,3.35949367]
[1772782475501,2.03894796,2082.6,2082.1,3.35951925]
[1772782476618,2.03894796,2082.6,2082.1,2.15880867]
[1772782476818,2.03894796,2082.5,2082.1,2.15880867]
[1772782476985,2.03894796,2082.5,2082.1,3.35950852]
[1772782477310,2.03894796,2082.5,2082.1,0.001]
[1772782478095,2.03894796,2082.5,2081.9,3.35959771]
[1772782479194,2.03894796,2082.4,2082.3,0.001]
[1772782479496,2.03894796,2082.4,2081.9,3.35963206]
[1772782479683,2.03894796,2082.4,2082.0,0.001]
[1772782480711,1.20053721,2082.5,2082.0,0.001]
[1772782480712,1.20242286,2082.6,2082.0,2.15880867]
[1772782480916,1.2024238,2082.6,2082.0,2.15880867]
[1772782481122,2.04094796,2082.6,2082.0,3.35952398]
[1772782482218,2.03894796,2082.5,2082.0,3.35952398]
[1772782482717,2.03894796,2082.5,2082.1,2.15780867]
[1772782484820,3.2394855,2082.5,2082.1,2.15780867]
[1772782485018,1.20053754,2082.5,2082.0,1.20171531]
[1772782485318,2.03894796,2082.4,2082.0,0.001]
[1772782486522,2.03894796,2082.4,2082.0,1.20176173]
[1772782486713,2.03894796,2082.4,2082.0,0.001]
[1772782487224,3.23949329,2082.4,2082.0,2.15880867]
[1772782487420,4.80375324,2082.6,2082.0,2.15880867]
[1772782487421,0.002,2082.6,2082.0,2.15880867]
[1772782487594,1.20242469,2082.6,2082.0,2.15880867]
[1772782489009,1.20242469,2082.6,2082.1,3.35851949]
[1772782489204,4.80333734,2082.8,2082.1,3.35851949]
[1772782489205,0.002,2082.8,2082.2,2.15780867]
[1772782489403,1.20214497,2083.1,2082.3,2.15780867]
[1772782490034,0.002,2083.1,2082.3,2.15780867]
[1772782490622,1.20213638,2083.1,2082.3,2.15780867]
[1772782491121,1.20213638,2083.1,2082.5,2.15780867]
[1772782491432,0.002,2083.1,2082.5,2.15780867]
[1772782492824,0.002,2082.6,2082.5,2.15780867]
[1772782493229,0.002,2082.6,2082.5,3.35828886]
[1772782497641,0.002,2082.8,2082.7,3.35817358]
[1772782498217,0.002,2082.8,2082.5,2.15780867]
[1772782498539,0.002,2082.8,2082.4,2.15780867]
[1772782499058,1.76706566,2082.8,2082.4,2.15780867]
[1772782499219,1.76706566,2082.8,2082.3,1.20059549]
[1772782500042,1.76706566,2082.8,2082.3,2.077135]
[1772782501253,1.7617005,2082.7,2082.2,2.078135]
[1772782502223,0.002,2082.8,2082.4,2.077135]
[1772782503337,0.002,2083.1,2082.4,2.077135]
[1772782504159,0.002,2083.1,2082.5,1.20048019]
[1772782504360,0.002,2083.1,2082.6,2.077135]
[1772782504743,0.002,2083.1,2082.4,4.80192076]
[1772782504744,1.75852104,2083.1,2082.4,3.27765078]
[1772782505055,1.75852104,2083.1,2082.4,2.077135]
[1772782505056,0.002,2082.6,2082.4,2.077135]
[1772782505261,0.002,2082.6,2082.2,2.078135]
[1772782506464,0.002,2082.6,2082.0,4.80395837]
[1772782506465,1.75167509,2082.5,2082.0,0.001]
[1772782506657,1.75167509,2082.5,2081.8,0.001]
[1772782507062,1.74927557,2082.4,2081.5,0.001]
[1772782507641,1.74927557,2082.3,2081.5,0.001]
[1772782507847,1.74927557,2082.2,2081.5,0.001]
[1772782508244,1.746957,2082.0,2081.5,0.001]
[1772782508872,1.746957,2082.0,2081.2,0.001]
[1772782509183,1.74451751,2081.8,2081.2,0.001]
[1772782509350,1.74451751,2081.8,2081.0,0.001]
[1772782511044,1.74913981,2081.6,2081.0,0.001]
[1772782513173,5.29943343,2081.9,2081.0,2.078135]
[1772782514147,1.74169036,2081.8,2081.0,2.078135]
[1772782514351,1.74169036,2081.8,2081.0,0.001]
[1772782515252,1.73919128,2081.6,2081.0,0.001]
[1772782515775,1.73919128,2082.1,2081.1,2.077135]
[1772782516982,1.73919128,2082.1,2081.2,0.001]
[1772782517351,1.73418518,2081.9,2081.2,1.20223005]
[1772782519066,1.73418518,2081.9,2081.2,0.001]